Workbook

Sheet R8.5
B1: 行政区別の世帯数と人口
G2: (令和8年5月末日現在)
B4: 校区 | C4: 区名 | D4: 世帯数 | E4: 人口 | H4: 65歳以上の 割合（％）
E5: 男 | F5: 女 | G5: 全体
B6: 腹赤 | C6: 平原 | D6: 350 | E6: 349 | F6: 280 | G6: =SUM(E6:F6) -> 629 | H6: 32.4
C7: 清源寺 | D7: 617 | E7: 669 | F7: 627 | G7: =SUM(E7:F7) -> 1,296 | H7: 37.7
C8: 上沖洲 | D8: 352 | E8: 357 | F8: 292 | G8: 649 | H8: 42.8
C9: 腹赤 | D9: 389 | E9: 418 | F9: 467 | G9: 885 | H9: 32.4
C10: 腹赤新町 | D10: 86 | E10: 76 | F10: 98 | G10: 174 | H10: 50.6
C11: 校区合計 | D11: 1,794 | E11: 1,869 | F11: 1,764 | G11: =SUM(G6:G10) -> 3,633 | H11: 37.0
B12: 六栄 | C12: 折地 | D12: 216 | E12: 211 | F12: 227 | G12: =SUM(E12:F12) -> 438 | H12: 44.5
C13: 赤崎 | D13: 128 | E13: 140 | F13: 137 | G13: =SUM(E13:F13) -> 277 | H13: 47.7
C14: 高田 | D14: 59 | E14: 63 | F14: 69 | G14: 132 | H14: 37.9
C15: 鷲巣 | D15: 214 | E15: 221 | F15: 204 | G15: 425 | H15: 48.2
C16: 立野 | D16: 168 | E16: 163 | F16: 157 | G16: 320 | H16: 49.1
C17: 向野 | D17: 417 | E17: 470 | F17: 470 | G17: 940 | H17: 33.8
C18: 宮崎 | D18: 148 | E18: 152 | F18: 156 | G18: 308 | H18: 45.5
C19: 赤田 | D19: 88 | E19: 88 | F19: 98 | G19: 186 | H19: 47.8
C20: 葛輪 | D20: 94 | E20: 89 | F20: 73 | G20: 162 | H20: 52.5
C21: 永方 | D21: 104 | E21: 87 | F21: 121 | G21: 208 | H21: 51.9
C22: 塩屋 | D22: 102 | E22: 90 | F22: 97 | G22: 187 | H22: 46.0
C23: 向野北 | D23: 337 | E23: 402 | F23: 181 | G23: 583 | H23: 0.5
C24: 古城 | D24: 288 | E24: 329 | F24: 337 | G24: 666 | H24: 37.1
C25: 校区合計 | D25: 2,362 | E25: 2,504 | F25: 2,327 | G25: 4,831 | H25: 37.6
B26: 清里 | C26: 建浜 | D26: 364 | E26: 420 | F26: 408 | G26: =SUM(E26:F26) -> 828 | H26: 33.0
C27: 駅通 | D27: 173 | E27: 190 | F27: 166 | G27: =SUM(E27:F27) -> 356 | H27: 27.5
C28: 梅田 | D28: 265 | E28: 265 | F28: 285 | G28: 550 | H28: 40.5
C29: 校区合計 | D29: 802 | E29: 875 | F29: =SUM(F26:F28) -> 859 | G29: =SUM(G26:G28) -> 1,734 | H29: 34.3
B30: 長洲 | C30: 出町 | D30: 245 | E30: 253 | F30: 252 | G30: =SUM(E30:F30) -> 505 | H30: 33.9
C31: 新町 | D31: 157 | E31: 160 | F31: 165 | G31: =SUM(E31:F31) -> 325 | H31: 43.7
C32: 西新町 | D32: 29 | E32: 28 | F32: 23 | G32: 51 | H32: 54.9
C33: 宮ノ町 | D33: 176 | E33: 175 | F33: 152 | G33: 327 | H33: 36.1
C34: 松原 | D34: 105 | E34: 100 | F34: 90 | G34: 190 | H34: 38.9
C35: 新山 | D35: 289 | E35: 260 | F35: 285 | G35: 545 | H35: 51.0
C36: 宝町 | D36: 121 | E36: 101 | F36: 103 | G36: 204 | H36: 53.9
C37: 磯町 | D37: 104 | E37: 92 | F37: 81 | G37: 173 | H37: 51.4
C38: 上町 | D38: 80 | E38: 84 | F38: 67 | G38: 151 | H38: 39.7
C39: 中町 | D39: 63 | E39: 51 | F39: 50 | G39: 101 | H39: 50.5
C40: 下本 | D40: 50 | E40: 30 | F40: 41 | G40: 71 | H40: 56.3
C41: 今町 | D41: 40 | E41: 41 | F41: 54 | G41: 95 | H41: 49.5
C42: 下東 | D42: 281 | E42: 289 | F42: 288 | G42: 577 | H42: 30.0
C43: 西荒神 | D43: 59 | E43: 54 | F43: 52 | G43: 106 | H43: 51.9
C44: 東荒神 | D44: 425 | E44: 426 | F44: 391 | G44: 817 | H44: 28.4
C45: 大明神 | D45: 330 | E45: 320 | F45: 252 | G45: 572 | H45: 35.7
C46: 校区合計 | D46: 2,555 | E46: 2,465 | F46: 2,346 | G46: 4,811 | H46: 38.9
B48: 全体 | C48: =D11+D25+D29+D46 -> 7,513 | E48: =G11+G25+G29+G46 -> 15,009 | G48: 37.5%
D49: （世帯数） | F49: （人口） | H49: （65歳以上の割合）

Sheet R8.4
B1: 行政区別の世帯数と人口
G2: (令和8年4月末日現在)
B4: 校区 | C4: 区名 | D4: 世帯数 | E4: 人口 | H4: 65歳以上の 割合（％）
E5: 男 | F5: 女 | G5: 全体
B6: 腹赤 | C6: 平原 | D6: 348 | E6: 349 | F6: 280 | G6: =SUM(E6:F6) -> 629 | H6: 32.4
C7: 清源寺 | D7: 618 | E7: 670 | F7: 629 | G7: =SUM(E7:F7) -> 1,299 | H7: 37.6
C8: 上沖洲 | D8: 349 | E8: 355 | F8: 289 | G8: 644 | H8: 43.0
C9: 腹赤 | D9: 389 | E9: 418 | F9: 467 | G9: 885 | H9: 32.2
C10: 腹赤新町 | D10: 86 | E10: 76 | F10: 98 | G10: 174 | H10: 50.6
C11: 校区合計 | D11: 1,790 | E11: 1,868 | F11: 1,763 | G11: =SUM(G6:G10) -> 3,631 | H11: 37.0
B12: 六栄 | C12: 折地 | D12: 215 | E12: 210 | F12: 228 | G12: =SUM(E12:F12) -> 438 | H12: 44.1
C13: 赤崎 | D13: 127 | E13: 140 | F13: 136 | G13: =SUM(E13:F13) -> 276 | H13: 47.5
C14: 高田 | D14: 59 | E14: 63 | F14: 69 | G14: 132 | H14: 37.9
C15: 鷲巣 | D15: 214 | E15: 222 | F15: 203 | G15: 425 | H15: 48.2
C16: 立野 | D16: 165 | E16: 160 | F16: 158 | G16: 318 | H16: 49.4
C17: 向野 | D17: 415 | E17: 466 | F17: 470 | G17: 936 | H17: 34.0
C18: 宮崎 | D18: 148 | E18: 153 | F18: 156 | G18: 309 | H18: 45.6
C19: 赤田 | D19: 88 | E19: 88 | F19: 98 | G19: 186 | H19: 47.3
C20: 葛輪 | D20: 94 | E20: 89 | F20: 73 | G20: 162 | H20: 52.5
C21: 永方 | D21: 104 | E21: 87 | F21: 121 | G21: 208 | H21: 51.9
C22: 塩屋 | D22: 103 | E22: 90 | F22: 98 | G22: 188 | H22: 46.3
C23: 向野北 | D23: 341 | E23: 406 | F23: 187 | G23: 593 | H23: 0.5
C24: 古城 | D24: 285 | E24: 326 | F24: 337 | G24: 663 | H24: 37.3
C25: 校区合計 | D25: 2,357 | E25: 2,499 | F25: 2,334 | G25: 4,833 | H25: 37.5
B26: 清里 | C26: 建浜 | D26: 361 | E26: 419 | F26: 409 | G26: =SUM(E26:F26) -> 828 | H26: 33.1
C27: 駅通 | D27: 173 | E27: 192 | F27: 166 | G27: =SUM(E27:F27) -> 358 | H27: 27.1
C28: 梅田 | D28: 265 | E28: 266 | F28: 285 | G28: 551 | H28: 40.7
C29: 校区合計 | D29: 799 | E29: 877 | F29: =SUM(F26:F28) -> 860 | G29: =SUM(G26:G28) -> 1,737 | H29: 34.3
B30: 長洲 | C30: 出町 | D30: 241 | E30: 251 | F30: 249 | G30: =SUM(E30:F30) -> 500 | H30: 34.2
C31: 新町 | D31: 156 | E31: 157 | F31: 164 | G31: =SUM(E31:F31) -> 321 | H31: 44.2
C32: 西新町 | D32: 29 | E32: 28 | F32: 23 | G32: 51 | H32: 54.9
C33: 宮ノ町 | D33: 173 | E33: 174 | F33: 150 | G33: 324 | H33: 36.4
C34: 松原 | D34: 105 | E34: 100 | F34: 90 | G34: 190 | H34: 38.9
C35: 新山 | D35: 289 | E35: 260 | F35: 285 | G35: 545 | H35: 50.6
C36: 宝町 | D36: 121 | E36: 101 | F36: 103 | G36: 204 | H36: 53.9
C37: 磯町 | D37: 104 | E37: 93 | F37: 81 | G37: 174 | H37: 51.1
C38: 上町 | D38: 79 | E38: 82 | F38: 68 | G38: 150 | H38: 40.7
C39: 中町 | D39: 64 | E39: 51 | F39: 52 | G39: 103 | H39: 51.5
C40: 下本 | D40: 49 | E40: 30 | F40: 41 | G40: 71 | H40: 56.3
C41: 今町 | D41: 40 | E41: 41 | F41: 54 | G41: 95 | H41: 49.5
C42: 下東 | D42: 280 | E42: 289 | F42: 287 | G42: 576 | H42: 30.0
C43: 西荒神 | D43: 60 | E43: 55 | F43: 52 | G43: 107 | H43: 52.3
C44: 東荒神 | D44: 429 | E44: 434 | F44: 392 | G44: 826 | H44: 28.0
C45: 大明神 | D45: 325 | E45: 315 | F45: 252 | G45: 567 | H45: 35.6
C46: 校区合計 | D46: 2,545 | E46: 2,462 | F46: 2,343 | G46: 4,805 | H46: 38.9
B48: 全体 | C48: =D11+D25+D29+D46 -> 7,491 | E48: =G11+G25+G29+G46 -> 15,006 | G48: 37.5%
D49: （世帯数） | F49: （人口） | H49: （65歳以上の割合）
